Cogmind - Beta 16.1 @@@ ROGUE MODE // 2026.02.28 @ 01:50:31 Player: TheSkyeDoctor Result: Destroyed by H-55 Commando with Gauss Rifle Performance ------------- Evolutions (3) 1500 Regions Visited (4) 800 Robots Destroyed (89) 445 Value Destroyed (2707) 2707 Prototype IDs (1) 20 Alien Tech Used (0) 0 Bonus (200) 200 TOTAL SCORE: 5672 Bonus ------- High Alert Combat Kills 120 Follower Combat Kills 80 Cogmind --------- Core Integrity 0/700 Matter 68/300 Energy 91/100 System Corruption 3% Temperature Cool (0) Movement Core (400) Ox7 Location -7/Factory Parts ------- > --- POWER (1) -------- (None) > --- PROPULSION (3) --- (None) > --- UTILITY (6) ------ Large Storage Unit Improved Targeting Computer Melee Analysis Suite Core Analyzer Hacking Suite Hacking Suite > --- WEAPON (3) ------- Power Maul > --- INVENTORY (15) --- Huge Storage Unit Heavy Armor Plating System Shield Improved Datajack Hammer Great Axe Peak State ------------ > --- POWER ------------ Light Nuclear Core > --- PROPULSION ------- Light Treads Improved Treads Medium Treads > --- UTILITY ---------- Large Storage Unit Improved Targeting Computer Melee Analysis Suite Improved Medium Armor Plating Hacking Suite Hacking Suite > --- WEAPON ----------- Pulse Rifle Gauss Rifle Power Maul > --- INVENTORY -------- Light Deuterium Engine Wheel Wheel Huge Storage Unit Core Analyzer Heavy Armor Plating Improved Light Armor Plating System Shield Gauss Cannon Heavy Missile Launcher Heavy Missile Launcher Improved Datajack Hammer Great Axe [Rating: 41] Favorites ----------- Power Light Nuclear Core Engine Ion Engine Power Core Light Nuclear Core Propulsion Light Treads Treads Light Treads Wheel Wheel Utility Hacking Suite Device Seismic Detector Storage Large Storage Unit Processor Improved Targeting Computer Hackware Hacking Suite Protection Improved Medium Armor Plating Weapon Hammer Energy Gun Medium Laser Ballistic Gun Gauss Rifle Ballistic Cannon Gauss Cannon Launcher Improved Grenade Launcher Impact Weapon Hammer Build | -11 -10 -9 -8 -7 ------- Run | Yrd Mat Mat Mat Fac Slots Evolved 6 | . . 2 2 2 Power . | . . . . . Propulsion 1 | . . . . 1 Utility 4 | . . 1 2 1 Weapon 1 | . . 1 . . Parts Attached 50 | 7 . 17 10 16 Power 6 | 1 . 2 1 2 Engine 4 | 1 . 2 . 1 Core 2 | . . . 1 1 Reactor . | . . . . . Propulsion 16 | 2 . 7 3 4 Treads 12 | 2 . 5 2 3 Leg . | . . . . . Wheel 4 | . . 2 1 1 Hover . | . . . . . Flight . | . . . . . Utility 14 | 2 . 4 5 3 Device 1 | 1 . . . . Storage 2 | 1 . 1 . . Processor 3 | . . 1 1 1 Hackware 2 | . . . 2 . Protection 6 | . . 2 2 2 Artifact . | . . . . . Weapon 14 | 2 . 4 1 7 Energy Gun 3 | 1 . . . 2 Energy Cannon . | . . . . . Ballistic Gun 2 | 1 . . . 1 Ballistic Cannon 1 | . . . . 1 Launcher 5 | . . 2 1 2 Special Weapon . | . . . . . Impact Weapon 3 | . . 2 . 1 Slashing Weapon . | . . . . . Piercing Weapon . | . . . . . Special Melee Weapon . | . . . . . Unidentified Prototypes 1 | . . . . 1 Parts Lost 38 | . . 12 10 16 Power 6 | . . 2 1 3 Propulsion 16 | . . 6 4 6 Utility 6 | . . 1 3 2 Weapon 10 | . . 3 2 5 Highest Loss Streak 9 | . . 6 8 9 To Critical Strikes 2 | . . . 1 1 Average Backups 7 | 2 5 4 6 10 Power . | . 1 . . . Propulsion 2 | 1 3 2 3 2 Utility 1 | . . . . 3 Weapon 1 | . . . 1 3 Tool/Special . | . . . . . Unused Backups 6 | . . 1 . 5 Power . | . . . . . Propulsion 1 | . . 1 . . Utility 3 | . . . . 3 Weapon 1 | . . . . 1 Tool/Special 1 | . . . . 1 Average Slot Usage (%) 83 | . 100 69 78 85 Engine 5 | . 14 9 6 . Core 3 | . . . 2 6 Treads 12 | . 28 8 14 7 Wheel 4 | . . 7 1 6 Device 3 | . 14 3 . . Storage 9 | . 14 11 9 7 Processor 9 | . . 4 10 15 Hackware 7 | . . . 9 15 Protection 4 | . . 2 8 5 Energy Gun 4 | . 14 1 . 3 Ballistic Gun 6 | . 14 6 . 5 Launcher 2 | . . 3 7 1 Impact Weapon 6 | . . 10 9 7 Peak Build Rating 41 | 7 7 13 22 41 Average Rating 19 | 5 7 8 17 33 On Entrance 9 | . 7 7 13 19 Avg Prop Armor Cover (%) . | . . . . . Naked Turns . | . . . . . Heaviest Build 45 | 14 14 38 40 45 Greatest Support 71 | 40 40 40 40 71 Greatest Overweight (x) 8 | . . 2 8 4 Average Overweight (x) . | . . . . . Largest Inventory Capacity 15 | 8 8 15 15 15 Average Capacity 12 | 7 8 8 15 15 Most Carried 15 | 3 8 7 9 15 Average Carried 7 | 2 5 4 6 11 Final Capacity 15 | 8 8 15 15 15 Final Carried 8 | 3 8 6 6 7 Class Distribution -------------------- 54% | Mutant 39% | Hacker-Mutant 3% | Scavenger-Mutant Dominant Class ---------------- Mutant | -10/Materials Mutant | -9/Materials Mutant | -8/Materials Hacker-Mutant | -7/Factory Resources | -11 -10 -9 -8 -7 ----------- Run | Yrd Mat Mat Mat Fac Matter Collected 1031 | 281 51 179 246 274 Remotely . | . . . . . Salvage Created 2258 | 130 336 749 343 700 Parts 131 | 6 19 42 19 45 Haulers Intercepted . | . . . . . Recyclers Shooed 1 | 1 . . . . Parts Field Recycled . | . . . . . Retrieved Matter . | . . . . . Parts Self-Destructed . | . . . . . Prevented . | . . . . . Parts Restored . | . . . . . Kills | -11 -10 -9 -8 -7 ------- Run | Yrd Mat Mat Mat Fac Combat Hostiles Destroyed 59 | . 10 17 11 21 Melee 12 | . . 9 2 1 Guns 18 | . 10 . . 8 Cannons 5 | . . 1 . 4 AOE 20 | . . 5 7 8 Classes Destroyed 14 | 2 3 5 1 3 Worker 8 | . . 2 1 5 Builder 6 | . . 2 1 3 Tunneler 4 | 3 . . 1 . Recycler 3 | 1 . 1 . 1 Operator 2 | . . . 1 1 Watcher 7 | . 2 2 1 2 Swarmer 18 | . 4 . 4 10 Grunt 26 | . 6 11 5 4 Brawler 2 | . . 1 1 . Duelist 3 | . . 2 . 1 Protector 1 | . . . . 1 Sentry 5 | . . 3 1 1 Hunter 1 | . . . . 1 Programmer 3 | . . . . 3 Best Kill Streak 11 | 2 3 5 5 11 Combat Bots Only 5 | . 3 5 4 5 Max Kills in Single Turn 4 | 1 1 2 3 4 Gunslinging . | . . . . . Exploded 3 | . . 2 2 3 Melee 1 | . . 1 1 1 Uniques/NPCs Destroyed . | . . . . . Combat | -11 -10 -9 -8 -7 -------- Run | Yrd Mat Mat Mat Fac Hostile Shots Fired 502 | . 70 123 88 221 Missed 147 | . 24 31 16 76 Hits 355 | . 46 92 72 145 Melee 31 | . . 10 12 9 Projectile 324 | . 46 82 60 136 AOE 1 | . . 1 . . Critical Strikes 15 | . . 3 5 7 Actively Blocked 1 | . . . 1 . Damage Taken 5710 | . 385 1493 1293 2539 Core 1396 | . 56 356 269 715 Absorbed by Shields . | . . . . . Redirected to Shielding 68 | . . . 68 . Core Remaining (%) 59 | 100 77 11 51 . Volleys Fired 122 | 11 41 12 11 47 Largest 2 | 2 2 2 1 2 Hottest 91 | 70 70 80 36 91 Shots Fired 201 | 22 77 16 11 75 Gun 159 | 22 77 8 . 52 Cannon 15 | . . . . 15 Launcher 27 | . . 8 11 8 Special . | . . . . . Kinetic 104 | 11 41 5 . 47 Thermal 70 | 11 36 3 . 20 Explosive 27 | . . 8 11 8 Electromagnetic . | . . . . . Robot Hit Streak 7 | 4 7 3 7 7 Robot Miss Streak 5 | 3 4 5 1 5 Penetration Max . | . . . . . Secondary Targets 3 | . 1 . . 2 Max Gunslinging Chain 1 | . 1 . . 1 Shots Hit Robots 178 | 11 44 46 29 48 Core Hits 110 | 5 21 20 18 46 Critical Kills 5 | . 2 2 1 . Critical Parts Destroyed 11 | . 1 7 2 1 Critical Strikes 22 | . 5 10 3 4 Burn 3 | . 2 . . 1 Destroy 4 | . 3 . . 1 Blast 2 | . . . . 2 Smash 13 | . . 10 3 . Melee Attacks 91 | . . 53 27 11 Impact 91 | . . 53 27 11 Slashing . | . . . . . Piercing . | . . . . . Sneak Attacks 7 | . . 4 2 1 Combat Hostiles . | . . . . . Follow-up Attacks . | . . . . . Damage Inflicted 7286 | 119 489 1923 1326 3429 Guns 1250 | 119 489 20 . 622 Cannons 315 | . . . . 315 Explosions 3612 | . . 574 841 2197 Melee 2109 | . . 1329 485 295 Ramming . | . . . . . Kinetic 933 | 44 213 20 . 656 Thermal 632 | 75 276 . . 281 Explosive 3612 | . . 574 841 2197 Electromagnetic . | . . . . . Impact 2109 | . . 1329 485 295 Slashing . | . . . . . Piercing . | . . . . . Highest Corruption 6 | . 3 . 6 3 Average Corruption 2 | . 2 . 5 1 Corruption Purged . | . . . . . Corruption Blocked . | . . . . . Effects 13 | . 1 . 5 7 Message Errors 1 | . . . . 1 Matter Fused 5 | . 1 . 2 2 Heat Flow Errors 4 | . . . 2 2 Data Loss (minor) 2 | . . . 1 1 Misfires 1 | . . . . 1 Overload Shots . | . . . . . Overflow Damage 716 | . . 390 87 239 Projectiles 3 | . . . . 3 Explosions 183 | . . . 26 157 Melee 530 | . . 390 61 79 Knockbacks 14 | . . 6 1 7 Impact 7 | . . 4 1 2 Kinetic 5 | . . . . 5 Secondary 2 | . . 2 . . Self-Inflicted Damage 275 | . . 10 70 195 Shots 8 | . . 1 2 5 Rammed . | . . . . . Targets Rammed . | . . . . . Kicked . | . . . . . Crushed . | . . . . . Highest Temperature 252 | 70 206 36 245 252 Average Temperature 54 | 33 67 17 96 45 Received Heat Transfer 1419 | . 69 480 495 375 Siege Activations . | . . . . . Martial Activations . | . . . . . Shielding Activations . | . . . . . Robots Disrupted . | . . . . . Combat Hostiles . | . . . . . Robots Corrupted 8 | . . 4 2 2 Combat Hostiles 4 | . . 2 2 . Parts Fried 15 | . . 10 . 5 Impact Corruptions 22 | . . 16 3 3 Robots Melted . | . . . . . Combat Hostiles . | . . . . . Parts Melted 1 | . . . . 1 Heat Transferred 1850 | 222 962 . . 666 Parts Sabotaged . | . . . . . Parts Stolen . | . . . . . Parts Stripped . | . . . . . Power Chain Reactions . | . . . . . Alert | -11 -10 -9 -8 -7 ------- Run | Yrd Mat Mat Mat Fac Maximum Alert Level 3 | . . . 1 3 Low Security (%) 83 | 100 100 100 97 59 Level 1 10 | . . . 2 26 Level 2 4 | . . . . 12 Level 3 . | . . . . 1 Level 4 . | . . . . . Level 5 . | . . . . . High Security . | . . . . . Max Security . | . . . . . Peak Influence 751 | 5 82 188 206 751 Initial 72 | . . 25 72 29 Average 110 | 1 37 59 107 181 Influence Increases 2542 | 20 283 563 404 1272 Destroy 0b10 Robot/C 1240 | . 200 340 220 480 Destroy 0b10 Robot/NC 165 | 20 10 35 25 75 Destroy Leader 294 | . 54 104 42 94 Allied During Kill 35 | . . . . 35 Successful Hack 24 | . 4 4 12 4 Disable Machine 480 | . . 15 30 435 Destroy Structure 289 | . . 65 75 149 Lose Combat Pursuer 15 | . 15 . . . Influence Decreases 1841 | 20 222 452 510 637 Entered New Map 173 | . . 36 100 37 Time Decay 1219 | 20 222 300 310 367 Lost Part 376 | . . 116 100 160 Lost Ally 73 | . . . . 73 Squads Dispatched 7 | . 2 2 1 2 Investigation 1 | . . 1 . . Extermination 2 | . . . . 2 Reinforcement 4 | . 2 1 1 . Assault . | . . . . . Garrison . | . . . . . Intercept . | . . . . . Searches Triggered . | . . . . . Construction Impeded 1 | . . . 1 . Haulers Reinforced . | . . . . . Active Scanning Responses . | . . . . . Cargo Convoy Interrupts 1 | . . . . 1 Stealth | -11 -10 -9 -8 -7 --------- Run | Yrd Mat Mat Mat Fac Distress Signals 5 | . . 4 . 1 Communications Jammed . | . . . . . Distress Signals . | . . . . . Times Spotted 97 | . 16 26 17 38 Peak Tracking Total 12 | . 4 9 6 12 Tactical Retreats 1 | . 1 . . . Traps | -11 -10 -9 -8 -7 ------- Run | Yrd Mat Mat Mat Fac Traps Triggered 4 | . 2 . . 2 Indirectly . | . . . . . Trap Hack Attempts . | . . . . . Triggered . | . . . . . Disarmed . | . . . . . Reprogrammed . | . . . . . Reused . | . . . . . Traps Extracted . | . . . . . Installed . | . . . . . Triggered . | . . . . . Machines | -11 -10 -9 -8 -7 ---------- Run | Yrd Mat Mat Mat Fac Machines Disabled 32 | . . 1 2 29 Max in Single Turn 5 | . . 1 1 5 Garrison Access 1 | . . . . 1 Machines Repaired . | . . . . . Machines Dismantled . | . . . . . Machines Sabotaged . | . . . . . Overloaded Fab Kills . | . . . . . Hacking | -11 -10 -9 -8 -7 --------- Run | Yrd Mat Mat Mat Fac Machines Accessed 11 | . 3 2 2 4 Terminals 8 | . 3 2 2 1 Fabricators 2 | . . . . 2 Repair Stations . | . . . . . Recycling Units . | . . . . . Scanalyzers . | . . . . . Garrison Access 1 | . . . . 1 Total Hacks 21 | . 6 4 3 8 Successful 8 | . 3 2 1 2 Failed 13 | . 3 2 2 6 Catastrophic 1 | . . . . 1 Database Lockouts . | . . . . . Manual 14 | . 6 4 3 1 Terminals 14 | . 6 4 3 1 Fabricators 6 | . . . . 6 Repair Stations . | . . . . . Recycling Units . | . . . . . Scanalyzers . | . . . . . Garrison Access 1 | . . . . 1 Terminal Hacks . | . . . . . Fabricator Hacks 1 | . . . . 1 Build 1 | . . . . 1 Repair Station Hacks . | . . . . . Recycling Unit Hacks . | . . . . . Scanalyzer . | . . . . . Garrison Access Hacks 1 | . . . . 1 Seal Access 1 | . . . . 1 Unauthorized Hacks 6 | . 3 2 1 . Terminals 6 | . 3 2 1 . Botnet 6 | . 3 2 1 . Fabricators . | . . . . . Repair Stations . | . . . . . Recycling Units . | . . . . . Scanalyzers . | . . . . . Garrison Access . | . . . . . Data Cores Recovered 2 | . . . 1 1 Used . | . . . . . Hacking Detections 8 | . 2 2 1 3 Full Trace Events 1 | . . 1 . . Feedback Events . | . . . . . Feedback Blocked . | . . . . . Robot Schematics Acquired . | . . . . . Robots Built 4 | . . . . 4 Authchips . | . . . . . Time 134 | . . . . 134 Total Robot Build Rating 16 | . . . . 16 Part Schematics Acquired . | . . . . . Parts Built . | . . . . . Authchips . | . . . . . Time . | . . . . . Total Part Build Rating . | . . . . . Part Studies Acquired . | . . . . . Parts Repaired . | . . . . . Time . | . . . . . Parts Recycled . | . . . . . Recycled Matter . | . . . . . Retrieved Matter . | . . . . . Retrieved Components . | . . . . . Parts Scanalyzed . | . . . . . Part Schematics Acquired . | . . . . . Parts Damaged . | . . . . . Bothacking | -11 -10 -9 -8 -7 ------------ Run | Yrd Mat Mat Mat Fac Used RIF Installer . | . . . . . Robots Hacked . | . . . . . Non-combat . | . . . . . Combat . | . . . . . Robot Hacks Applied . | . . . . . Relay Couplers Released 4 | . . . . 4 Programmers 4 | . . . . 4 Fabnet Peak Effective % . | . . . . . Robots Rewired . | . . . . . Allies Hacked 1 | . . . . 1 Hacks Repelled . | . . . . . Allies | -11 -10 -9 -8 -7 -------- Run | Yrd Mat Mat Mat Fac Total Allies 4 | . . . . 4 Largest Group 4 | . . . . 4 Highest-Rated Group 48 | . . . . 48 Highest-Rated Ally 12 | . . . . 12 Total Orders . | . . . . . Ally Attacks 41 | . . . . 41 Total Damage 333 | . . . . 333 Kills 6 | . . . . 6 Allies Corrupted . | . . . . . Allies Melted . | . . . . . Intel | -11 -10 -9 -8 -7 ------- Run | Yrd Mat Mat Mat Fac Active Infowar (turns) 796 | 25 568 203 . . Seismic 796 | 25 568 203 . . Robot Analysis Total . | . . . . . Derelict Logs Recovered . | . . . . . Drone Launches . | . . . . . Drone Recoveries . | . . . . . Exploration | -11 -10 -9 -8 -7 ------------- Run | Yrd Mat Mat Mat Fac Turns Passed 3329 | 110 568 681 691 1279 Spaces Moved 1757 | 43 280 391 364 679 Core 14 | 6 . 1 7 . Treads 1092 | 37 280 144 290 341 Legs . | . . . . . Wheels 651 | . . 246 67 338 Hover . | . . . . . Flight . | . . . . . Fastest Speed 50 | 50 160 80 95 95 Average Speed 140 | 144 160 115 154 138 Slowest Speed 450 | 160 160 240 450 240 Overloaded Moves . | . . . . . Propulsion Burnouts . | . . . . . Robots Hopped . | . . . . . Potential Cave-ins . | . . . . . Cave-ins Triggered . | . . . . . Exploration Rate (%) 33 | 4 60 44 39 19 Regions Visited 4 Branch Regions . Pre-discovered Areas . | . . . . . Known Exits Taken . | . . . . . Unknown Exits Taken 4 | 1 1 1 1 . Scrap Searched . | . . . . . Spaces Dug 6 | . . 4 . 2 Terrain Destroyed 310 | . . 63 74 173 Melee 6 | . . 4 . 2 Projectile 2 | . . . . 2 AOE 302 | . . 59 74 169 Terrain Rammed . | . . . . . Walls Destroyed . | . . . . . Machines Disabled . | . . . . . Actions | -11 -10 -9 -8 -7 --------- Run | Yrd Mat Mat Mat Fac Total 2265 | 68 331 513 433 920 Wait 198 | 5 6 27 14 146 Move 1753 | 42 279 390 363 679 Hop . | . . . . . Pick Up 34 | 3 5 8 7 11 Fast Attach 25 | 7 . 6 3 9 Attach 30 | . . 11 8 11 Detach 6 | . . 3 . 3 Swap 2 | . . 1 . 1 Drop 4 | . . 2 . 2 Fire 122 | 11 41 12 11 47 Melee 91 | . . 53 27 11 Ram . | . . . . . Kick . | . . . . . Crush . | . . . . . Escape Stasis . | . . . . . Rewire . | . . . . . Trap . | . . . . . Miscellaneous . | . . . . . Route ------- -11/Scrapyard -10/Materials (discovered 2 exits: *Mat / [*Min]) -9/Materials (discovered 2 exits: *Mat / [*Min]) -8/Materials -7/Factory History --------- Turn | Location | Event 52 | -11/Scrapyard | Discovered new exit (range 16) 111 | -11/Scrapyard | Entered Materials 302 | -10/Materials | Build established: Mutant 349 | -10/Materials | Discovered new exit (range 13) 659 | -10/Materials | Discovered new exit (range 13) 679 | -10/Materials | Entered another Materials area 679 | -9/Materials | Evolved 2 slots: Utility x1, Weapon x1 878 | -9/Materials | Lost 6 parts (1p3n2w) 1012 | -9/Materials | Core integrity fell below 50% 1061 | -9/Materials | Discovered new exit (range 9) 1313 | -9/Materials | Core integrity fell below 20% 1333 | -9/Materials | Discovered new exit (range 9) 1360 | -9/Materials | Entered another Materials area 1360 | -8/Materials | Evolved 2 slots: Utility x2 1970 | -8/Materials | Lost 8 parts (1p4n2u1w) 2045 | -8/Materials | Discovered new exit (range 5) 2051 | -8/Materials | Entered Factory 2051 | -7/Factory | Evolved 2 slots: Propulsion x1, Utility x1 2223 | -7/Factory | Fabricated S-27 Virus (x4) 2294 | -7/Factory | Build established: Hacker-Mutant 2824 | -7/Factory | Lost 3 parts (1p1n1u) 3167 | -7/Factory | Lost 3 parts (1n2w) 3309 | -7/Factory | Cargo convoy interrupted 3314 | -7/Factory | Core integrity fell below 50% 3324 | -7/Factory | Core integrity fell below 20% 3330 | -7/Factory | Destroyed by H-55 Commando with Gauss Rifle Last Messages --------------- 03323_ Slug penetrates Subcomponent Replicator. 03324_ U-05 Engineer builds a Wall. 03324_ U-05 Engineer lays Concrete. 03324_ Slug penetrates Earth. 03324_ R-06 Scavenger collects Sml. Matter Pod. 03324_ R-06 Scavenger collects Com. Battery. 03325_ The unstable cave ceiling collapses. 03325_ Penetrated by Slug. 03325_ Wheel destroyed. 03325_ R-06 Scavenger collects Wheel. 03326_ U-05 Engineer lays Concrete. 03327_ Slug penetrates Earth. 03327_ R-06 Scavenger collects Com. Battery. 03327_ Penetrated by Slug. 03327_ Lgt. Deuterium Engine destroyed. 03328_ U-05 Engineer lays Concrete. 03328_ R-06 Scavenger collects Lgt. Ion Engine. 03328_ Wheel destroyed. 03328_ Slug penetrates Wall. 03329_ U-05 Engineer lays Concrete. Map ----- +----------------------------------------------------+ | ?????????????????????????????????????????????????? | | ?????????????????????????????????????????????????? | | ?????????????????????????????????????????????????? | | ?????????????????????????????????????????????????? | | ?????????????????????????????????????????????????? | | ?????????????????????????????????????????????????? | | ?????????????????????????????????????????????????? | | ?????????????????????????????????????????????????? | | ?????????????????????????????????????????????????? | | ?????????????????????????????????????????????????? | | ?????????????????????????????????????????????????? | | ?????????????????????????????????????????????????? | | ?????????????????????????????????????????????????? | | ?????????????????????????????????????????????????? | | ??????????????????????????#+?????????????????????? | | ?????????????????????????? ?????????????????????? | | ?????????????????????????? "?????????????????????? | | ?????????????????????????? ???????#?????????????? | | ??????????????????????????# #????? ??????????????? | | ??????????????????????????# #???? #??????????????? | | ??????????????????????????# #####k#??????????????? | | ??????????????????????????# #??????????????? | | ??????????????????????????# hh #??????????????? | | ?????????????##T ########## h #??????????????? | | ??????????# r """ [# ????????? | | ??????????# @ r% "" #???????? | | ??????????# #######; #???????? | | ?????????????????????????# h #???????? | | ????????????????????######"r p= [% #???????? | | ???????????????????# """ # h % #???????? | | ???????????????????# """ * r% [ x ######???????? | | ???????????????????# """ #????????????? | | ???????????????????# # # % #????????????? | | ???????????????????# # ##???????????? | | ???????????????????# # # u #???????????? | | ???????????????????#####+## # #???????????? | | ???????????? + ##???????????? | | ??????????????????###### # # #???????????? | | ???????????????????????## # #???????????? | | ????????????????????????### #### ##???????????? | | ??????????????????????????# # #????????????? | | ????????????????????####### ### ###????????????? | | #####??#########????# ##############????? | | # #????# ## =]] #????? | | # """ """ #????# ## = #????? | | # """ """ #????# ## = """" #? ??? | | # """ """ #????# ##### ## """" #? ?? | | # ###### #???# ## """" #?"""" | | # """ """ + #???# ## """" # | | # """ """ ######+####???# ## # """" | +----------------------------------------------------+ Best States ------------- Heat Dissipation 34 Energy Generation 14 Energy Capacity 265 Matter Stores 300 Matter Capacity 300 Sight Range 16 Terrain Scan Density 10 Armor Coverage 225 Resistance: EM 15 Utility Shielding 66 Evasion (%) 50 Targeting Accuracy 6 Melee Accuracy 5 Core Analysis 6 Recoil Reduction 3 Offensive Hacking 20 Item Schematics ----------------- None Robot Schematics ------------------ None Fabricated ------------ S-27 Virus | x4 | -7/Factory | Preloaded Repaired ---------- Nothing Studied --------- None Alien Tech Used ----------------- None Achievements -------------- None Challenges ------------ None Game ------ Seed CannonCatalystCore Manual? 0 Play Time 00:24:20 Cumulative 48.7 hours Start 2026.02.28 @ 01:25:06 End 2026.02.28 @ 01:50:31 Sessions 1 Manual Loads 0 Difficulty Rogue Special Mode None Game No. 116 Rogue 116 Adventurer 0 Explorer 0 Win Type - Total 0 Types 0/0/0/0/0/0/0/0/0/0 Lore% 30 Gallery% 38 Achievement% 29 Wizard Run 0 Options --------- Layout 2 ASCII 0 Keyboard 1 Movement Arrows Keybinds 0 Fullscreen 1 Font 24/Smallcaps Map View 50x44 Zoom Use 0% Tactical HUD 1 Map Filters NONE Filters NONE Steam 1 RUN: 8620529f-b234-4df1-8bb2-e539514ee48c